bitfinex/quotes_BTCUSD_20241222
["timestamp","ask_amount","ask_price","bid_price","bid_amount"]
[1734884276194,0.07071574,95606.0,95603.0,0.1013084]
[1734884276424,0.27990974,95605.0,95603.0,0.1013084]
[1734884276704,0.209204,95601.0,95595.0,0.51479985]
[1734884276910,0.07071574,95600.0,95596.0,0.61610825]
[1734884277334,0.20917,95616.0,95596.0,0.51479985]
[1734884277335,0.07071574,95597.0,95596.0,0.51479985]
[1734884277742,0.27992674,95597.0,95596.0,0.51479985]
[1734884277976,0.07071574,95597.0,95596.0,0.51479985]
[1734884278525,0.209213,95596.0,95595.0,0.00016281]
[1734884278729,0.209213,95596.0,95595.0,0.10147121]
[1734884279331,0.27992874,95596.0,95595.0,0.00016281]
[1734884279552,0.35882874,95596.0,95595.0,0.00016281]
[1734884280127,0.35882874,95596.0,95595.0,0.00416281]
[1734884280328,0.35882874,95596.0,95595.0,0.00016281]
[1734884280662,0.35882874,95596.0,95595.0,0.00516281]
[1734884281172,0.35882874,95596.0,95595.0,0.00016281]
[1734884282673,0.35882874,95596.0,95595.0,0.00516281]
[1734884284539,0.35882874,95596.0,95595.0,0.00016281]
[1734884286462,0.14961574,95596.0,95569.0,0.21414502]
[1734884286658,0.20925,95580.0,95570.0,0.1013084]
[1734884286873,0.15477836,95596.0,95572.0,0.02059016]
[1734884287087,0.07071574,95582.0,95573.0,0.1013084]
[1734884287585,0.07071574,95582.0,95574.0,0.209261]
[1734884287807,0.07071574,95582.0,95575.0,0.1013084]
[1734884289868,0.209246,95581.0,95575.0,0.1013084]
[1734884290097,0.07071574,95582.0,95575.0,0.1063084]
[1734884290792,0.209246,95581.0,95575.0,0.1063084]
[1734884291017,0.07071574,95582.0,95575.0,0.1063084]
[1734884291654,0.209246,95581.0,95575.0,0.1003084]
[1734884291867,0.07071574,95582.0,95575.0,0.1003084]
[1734884292266,0.07071574,95582.0,95576.0,0.209257]
[1734884292472,0.07071574,95582.0,95577.0,0.1013084]
[1734884293206,0.07071574,95591.0,95577.0,0.1013084]
[1734884293409,0.07071574,95591.0,95586.0,0.209233]
[1734884293610,0.07071574,95591.0,95588.0,0.209231]
[1734884293738,0.07071574,95591.0,95588.0,0.3105394]
[1734884293941,0.07071574,95591.0,95588.0,0.1013084]
[1734884295198,0.07171574,95591.0,95588.0,0.1073084]
[1734884296437,0.07171574,95591.0,95588.0,0.1013084]
[1734884296802,0.07171574,95591.0,95588.0,0.3105374]
[1734884298904,0.00016262,95596.0,95590.0,0.1243084]
[1734884299112,0.00016262,95596.0,95595.0,0.209215]
[1734884299265,0.00016262,95596.0,95595.0,0.3105234]
[1734884300284,0.00916262,95596.0,95595.0,0.3115234]
[1734884303785,0.00916262,95596.0,95595.0,0.82632325]
[1734884305352,0.00926262,95596.0,95595.0,0.82632325]
[1734884305846,0.00926262,95596.0,95595.0,0.83694818]
[1734884306680,0.00926262,95596.0,95595.0,0.32214833]
[1734884307522,0.00934822,95596.0,95595.0,0.32214833]
[1734884307868,0.00934822,95596.0,95595.0,0.34514833]
[1734884308051,0.00934822,95596.0,95595.0,0.42124833]
[1734884308473,8.55e-05,95603.0,95595.0,0.21203333]
[1734884308672,8.55e-05,95631.0,95611.0,0.20918]
[1734884308874,8.55e-05,95631.0,95630.0,0.209139]
[1734884309076,0.00024822,95631.0,95630.0,0.3104474]
[1734884309424,0.00024822,95631.0,95630.0,0.2954474]
[1734884310170,0.00024822,95631.0,95630.0,0.3214474]
[1734884310376,0.00024822,95631.0,95630.0,0.2984474]
[1734884310574,0.00024822,95631.0,95630.0,0.31600293]
[1734884310776,0.00024822,95631.0,95630.0,0.32100293]
[1734884311154,0.05334708,95650.0,95644.0,0.209107]
[1734884311365,0.05334708,95650.0,95645.0,0.1013084]
[1734884311615,0.05334708,95650.0,95646.0,0.203104]
[1734884311827,0.05334708,95650.0,95647.0,0.1013084]
[1734884313630,0.05334708,95650.0,95648.0,0.2091]
[1734884313837,0.05334708,95648.0,95647.0,0.009]
[1734884314697,8.57e-05,95652.0,95647.0,0.1103084]
[1734884315072,0.05334708,95651.0,95648.0,0.1013084]
[1734884315482,8.57e-05,95652.0,95648.0,0.1013084]
[1734884316418,8.57e-05,95652.0,95648.0,0.0953084]
[1734884317280,8.57e-05,95652.0,95649.0,0.209097]
[1734884317498,8.57e-05,95652.0,95650.0,0.1013084]
[1734884318043,8.57e-05,95652.0,95651.0,0.209093]
[1734884318226,8.57e-05,95652.0,95651.0,0.3104014]
[1734884318427,0.05334708,95675.0,95664.0,0.418127]
[1734884318633,0.05334708,95673.0,95665.0,0.1013084]
[1734884319329,0.209028,95681.0,95665.0,0.1013084]
[1734884319330,8.56e-05,95687.0,95672.0,0.1013084]
[1734884319481,0.05334708,95677.0,95672.0,0.1013084]
[1734884319688,8.56e-05,95673.0,95672.0,0.1013084]
[1734884321493,8.56e-05,95673.0,95672.0,0.0953084]
[1734884321662,0.04839268,95677.0,95672.0,0.0953084]
[1734884321894,0.04839268,95685.0,95673.0,0.209045]
[1734884322086,8.56e-05,95687.0,95674.0,0.1013084]
[1734884322384,8.56e-05,95687.0,95683.0,0.209021]
[1734884322616,8.56e-05,95687.0,95685.0,0.209019]
[1734884322799,8.56e-05,95687.0,95686.0,0.1013084]
[1734884323367,8.56e-05,95687.0,95686.0,0.12256376]
[1734884324226,8.56e-05,95687.0,95686.0,0.86197093]
[1734884324521,8.56e-05,95687.0,95686.0,1.04307093]
[1734884324866,0.0782098,95729.0,95686.0,1.04307093]
[1734884324867,0.04969859,95728.0,95697.0,0.1]
[1734884325093,0.0005098,95729.0,95711.0,0.1013084]
[1734884325293,0.0777856,95747.0,95700.0,0.12621522]
[1734884325294,8.56e-05,95747.0,95739.0,0.208899]
[1734884325498,8.56e-05,95747.0,95740.0,0.1013084]
[1734884325718,0.04847828,95747.0,95740.0,0.1013084]
[1734884325919,0.04839268,95744.0,95740.0,0.1013084]
[1734884326125,0.00062811,95746.0,95740.0,0.1013084]
[1734884326338,0.00062811,95746.0,95745.0,0.1013084]
[1734884326534,0.00062811,95746.0,95745.0,0.61010825]
[1734884327131,0.04839268,95741.0,95740.0,0.004]
[1734884327331,0.0496984,95741.0,95740.0,0.004]
[1734884327966,0.0496984,95741.0,95713.0,0.02129931]
[1734884327967,0.0496984,95741.0,95713.0,0.53609916]
[1734884328155,0.04839268,95726.0,95714.0,0.1013084]
[1734884328361,0.25732368,95725.0,95714.0,0.1013084]
[1734884328523,0.25932843,95725.0,95714.0,0.1013084]
[1734884328911,0.05039743,95725.0,95714.0,0.1013084]
[1734884329099,0.00200475,95725.0,95714.0,0.1013084]
[1734884329323,0.04839268,95742.0,95719.0,0.1013084]
[1734884329897,0.04839268,95730.0,95719.0,0.1013084]
[1734884330272,0.04839268,95728.0,95719.0,0.1013084]
[1734884330829,0.00200098,95727.0,95719.0,0.1013084]
[1734884331215,0.04839268,95728.0,95719.0,0.1013084]
[1734884331414,0.208927,95727.0,95719.0,0.1013084]
[1734884331645,0.2112503,95727.0,95719.0,0.0953084]
[1734884331777,0.0023233,95727.0,95719.0,0.0953084]
[1734884331978,0.04839268,95720.0,95712.0,0.02113031]
[1734884332162,0.04839268,95720.0,95686.0,0.1]
[1734884332163,0.04839268,95702.0,95680.0,0.51479985]
[1734884332361,0.208999,95694.0,95682.0,0.51479985]
[1734884332561,0.04839268,95700.0,95687.0,0.02124745]
[1734884332780,0.208989,95699.0,95688.0,0.1013084]
[1734884332979,0.209,95694.0,95688.0,0.1013084]
[1734884333459,0.25737868,95700.0,95688.0,0.1013084]
[1734884333669,0.04839268,95693.0,95689.0,0.1013084]
[1734884333836,0.04839268,95688.0,95687.0,0.001]
[1734884335155,0.209014,95687.0,95673.0,0.02076841]
[1734884335373,0.209,95694.0,95674.0,0.1013084]
[1734884335560,0.04839268,95686.0,95674.0,0.1013084]
[1734884336696,0.209019,95685.0,95674.0,0.1013084]
[1734884336897,0.209019,95685.0,95674.0,0.11782093]
[1734884337108,0.04839268,95682.0,95674.0,0.1013084]
[1734884337285,0.209034,95679.0,95674.0,0.1013084]
[1734884337478,0.04839268,95673.0,95664.0,0.02067957]
[1734884337886,0.04839268,95673.0,95665.0,0.1013084]
[1734884338525,0.209062,95665.0,95646.0,0.51479985]
[1734884338632,0.04839268,95666.0,95647.0,0.61610825]
[1734884338633,0.209079,95658.0,95647.0,0.61610825]
[1734884338841,0.209079,95658.0,95655.0,0.00016272]
[1734884338842,0.25747168,95658.0,95655.0,0.00016272]
[1734884339231,0.46655068,95658.0,95655.0,0.00016272]
[1734884339444,0.25747168,95658.0,95655.0,0.00016272]
[1734884339964,0.04839268,95658.0,95655.0,0.00016272]
[1734884340167,0.04939268,95658.0,95655.0,0.00016272]
[1734884341438,0.04839268,95669.0,95656.0,0.1013084]
[1734884341653,0.04839268,95669.0,95656.0,0.3103884]
[1734884342122,0.209056,95668.0,95656.0,0.1013084]
[1734884342327,0.04839268,95669.0,95657.0,0.02062215]
[1734884342328,0.209068,95663.0,95657.0,0.02062215]
[1734884342548,0.04839268,95662.0,95658.0,0.1013084]
[1734884342753,0.04839268,95660.0,95657.0,0.11593055]
[1734884343437,0.04839268,95660.0,95657.0,0.1013084]
[1734884343670,0.04839268,95669.0,95657.0,0.1013084]
[1734884343825,0.0777,95689.0,95659.0,0.209075]
[1734884343826,0.04839268,95674.0,95659.0,0.209075]
[1734884344033,0.04839268,95674.0,95660.0,0.1013084]
[1734884344397,0.04839268,95667.0,95660.0,0.1013084]
[1734884344734,0.04839268,95665.0,95660.0,0.1013084]
[1734884344943,0.209071,95661.0,95657.0,0.002]
[1734884345143,0.04839268,95662.0,95658.0,0.1013084]
[1734884345346,0.25743768,95673.0,95659.0,0.209075]
[1734884345565,0.04839268,95667.0,95660.0,0.1033084]
[1734884345778,0.04839268,95669.0,95660.0,0.1013084]
[1734884346042,0.04839268,95686.0,95660.0,0.1013084]
[1734884346225,0.04839268,95686.0,95663.0,0.1013084]
[1734884346453,0.04839268,95686.0,95674.0,0.209041]
[1734884346605,0.04839268,95686.0,95676.0,0.209038]
[1734884346806,0.04839268,95686.0,95677.0,0.1013084]
[1734884347979,0.209019,95685.0,95677.0,0.1013084]
[1734884348369,0.04839268,95686.0,95665.0,0.209062]
[1734884348516,0.04839268,95677.0,95666.0,0.1013084]
[1734884348722,0.209019,95685.0,95666.0,0.1013084]
[1734884348941,0.04839268,95682.0,95673.0,0.209044]
[1734884349165,0.04839268,95678.0,95677.0,0.003]
[1734884349392,0.04839268,95678.0,95661.0,0.51479985]
[1734884349393,0.04839268,95664.0,95655.0,0.00016272]
[1734884349545,0.20908,95657.0,95655.0,0.00016272]
[1734884349908,0.25747268,95657.0,95655.0,0.00016272]
[1734884350146,0.04839268,95657.0,95655.0,0.00016272]
[1734884350348,0.04839268,95667.0,95656.0,0.1014794]
[1734884350572,0.20906,95666.0,95657.0,0.1013084]
[1734884350909,0.04839268,95667.0,95657.0,0.1013084]
[1734884351251,0.04839268,95660.0,95657.0,0.1013084]
[1734884351453,0.04839268,95660.0,95657.0,0.0953084]
[1734884351906,0.209075,95659.0,95657.0,0.0953084]
[1734884352122,0.04839268,95660.0,95657.0,0.1003084]
[1734884352284,0.04839268,95660.0,95657.0,0.0953084]
[1734884352669,0.04839268,95672.0,95657.0,0.0993084]
[1734884352878,0.04839268,95665.0,95657.0,0.0953084]
[1734884353144,0.209065,95664.0,95657.0,0.1013084]
[1734884353437,0.209067,95663.0,95657.0,0.1013084]
[1734884353636,0.25747068,95658.0,95657.0,0.006]
[1734884354397,0.25747068,95658.0,95656.0,0.000171]
[1734884354802,0.04969941,95657.0,95656.0,0.000171]
[1734884356184,0.04969941,95657.0,95656.0,0.005171]
[1734884356391,0.3257995,95657.0,95656.0,0.005171]
[1734884356590,0.32449268,95657.0,95656.0,0.005171]
[1734884357435,0.54880108,95657.0,95656.0,0.005171]
[1734884357566,0.54880108,95657.0,95656.0,0.000171]
[1734884357958,0.54980108,95657.0,95656.0,0.000171]
[1734884358158,0.32139268,95645.0,95644.0,0.0001712]
[1734884358388,0.70930708,95645.0,95644.0,2e-07]
[1734884360514,0.72594733,95645.0,95644.0,2e-07]
[1734884361327,0.72694733,95645.0,95644.0,0.0010002]
[1734884361529,0.04839268,95606.0,95599.0,0.209207]
[1734884361820,0.04839268,95606.0,95605.0,0.00016272]
[1734884362579,0.06511527,95606.0,95605.0,0.00016272]
[1734884363330,0.21511527,95606.0,95605.0,0.00016272]
[1734884364315,0.22211527,95606.0,95605.0,0.00116272]
[1734884364706,0.21511527,95606.0,95605.0,0.00016272]
[1734884365289,0.21911527,95606.0,95605.0,0.00016272]
[1734884365496,0.21511527,95606.0,95605.0,0.00016272]
[1734884365914,0.24111527,95606.0,95605.0,0.00016272]
[1734884367085,0.34242367,95606.0,95605.0,0.00016272]
[1734884367717,0.33942367,95606.0,95605.0,0.00016272]
[1734884368292,0.34242367,95606.0,95605.0,0.00016272]
[1734884368494,0.44242367,95606.0,95605.0,0.00016272]
[1734884368677,0.44242367,95606.0,95605.0,1e-08]
[1734884369092,0.43942367,95606.0,95605.0,1e-08]
[1734884369497,0.44142367,95606.0,95605.0,1e-08]
[1734884370351,0.44142367,95606.0,95605.0,0.00017121]
[1734884370730,0.43942367,95606.0,95605.0,0.00017121]
[1734884371130,0.44342367,95606.0,95605.0,0.00017121]
[1734884371590,0.53942367,95606.0,95605.0,0.00017121]
[1734884371914,0.61932367,95606.0,95605.0,0.00017121]
[1734884372320,0.62232367,95606.0,95605.0,0.00017121]
[1734884372486,0.61932367,95606.0,95605.0,0.00017121]
[1734884374251,0.62332367,95606.0,95605.0,0.00017121]
[1734884374377,0.61932367,95606.0,95605.0,0.00017121]
[1734884374807,0.62532367,95606.0,95605.0,0.00117121]
[1734884376508,0.52532367,95606.0,95605.0,0.00117121]
[1734884377090,0.32401527,95606.0,95605.0,0.00117121]
[1734884377298,0.22111527,95606.0,95605.0,0.00117121]
[1734884378469,0.07111527,95606.0,95605.0,0.00117121]
[1734884378897,0.006,95606.0,95605.0,0.00117121]
[1734884379073,0.05439268,95606.0,95605.0,0.00117121]
[1734884379910,0.006,95606.0,95605.0,0.10247961]
[1734884380119,0.04839268,95608.0,95605.0,0.10147961]
[1734884380510,0.001,95606.0,95605.0,0.10147961]
[1734884380726,0.04839268,95608.0,95605.0,0.10147961]
[1734884381026,0.04839268,95608.0,95606.0,0.209191]
[1734884381230,0.04839268,95606.0,95605.0,0.00617121]
[1734884381411,0.04839268,95606.0,95605.0,0.00017121]
[1734884381595,0.04839268,95586.0,95578.0,0.209252]
[1734884381794,0.04839268,95586.0,95580.0,0.209248]
[1734884381994,0.04839268,95585.0,95581.0,0.1013084]
[1734884382191,0.209194,95605.0,95581.0,0.1013084]
[1734884382609,0.209224,95592.0,95581.0,0.1013084]
[1734884382803,0.1,95621.0,95581.0,0.1013084]
[1734884382804,0.209226,95590.0,95581.0,0.1013084]
[1734884382995,0.209226,95590.0,95575.0,0.20997214]
[1734884383240,0.209236,95586.0,95576.0,0.1013084]
[1734884383481,0.00130776,95585.0,95576.0,0.1013084]
[1734884384120,0.209242,95583.0,95575.0,0.00071414]
[1734884384292,0.00130779,95582.0,95575.0,0.10202254]
[1734884384678,0.01672906,95591.0,95575.0,0.10202254]
[1734884384877,0.21053379,95590.0,95575.0,0.10202254]
[1734884385036,0.209237,95586.0,95576.0,0.213257]
[1734884385255,0.00130779,95585.0,95576.0,0.004]
[1734884385452,0.00130779,95585.0,95575.0,0.10202254]
[1734884385898,0.00130779,95585.0,95575.0,0.10602254]
[1734884386273,0.00130779,95585.0,95576.0,0.209257]
[1734884386471,0.00130779,95588.0,95577.0,0.209254]
[1734884386681,0.00130779,95588.0,95577.0,0.203254]
[1734884387043,0.00130779,95588.0,95582.0,0.209244]
[1734884387225,8.56e-05,95606.0,95575.0,0.10602254]
[1734884387226,0.209196,95604.0,95589.0,0.209227]
[1734884387642,0.2092,95602.0,95589.0,0.209227]
[1734884387845,0.20921,95598.0,95585.0,0.209236]
[1734884388067,0.209227,95590.0,95576.0,0.50431346]
[1734884388239,0.00130775,95589.0,95582.0,0.002]
[1734884388438,0.00130775,95589.0,95577.0,0.1013084]
[1734884388686,0.209231,95588.0,95578.0,0.209253]
[1734884388893,0.209226,95591.0,95578.0,0.209253]
[1734884389141,0.209229,95589.0,95577.0,0.1013084]
[1734884389345,0.2092,95603.0,95578.0,0.209251]
[1734884389546,0.0013077,95602.0,95579.0,0.1013084]
[1734884389759,0.0013077,95602.0,95586.0,0.209234]
[1734884389760,0.209202,95601.0,95586.0,0.209234]
[1734884389982,0.0013077,95600.0,95584.0,0.209238]
[1734884390200,0.418418,95598.0,95584.0,0.209238]
[1734884391076,0.209209,95598.0,95584.0,0.209238]
[1734884391272,0.00130763,95597.0,95586.0,0.209235]
[1734884391471,0.209204,95601.0,95588.0,0.209231]
[1734884391706,0.209204,95601.0,95588.0,0.203231]
[1734884392102,0.209194,95605.0,95592.0,0.209221]
[1734884392500,0.418388,95605.0,95592.0,0.209221]
[1734884392741,0.209204,95601.0,95588.0,0.412462]
[1734884392906,0.209204,95601.0,95588.0,0.203231]
[1734884393289,8.56e-05,95606.0,95589.0,0.1013084]
[1734884393455,8.56e-05,95606.0,95597.0,0.209211]
[1734884393771,8.56e-05,95606.0,95600.0,0.209203]
[1734884394177,8.56e-05,95606.0,95597.0,0.209211]
[1734884394368,8.56e-05,95606.0,95598.0,0.1013084]
[1734884394769,8.56e-05,95606.0,95605.0,0.209194]
[1734884394995,8.56e-05,95606.0,95605.0,0.3105024]
[1734884395418,0.0010856,95606.0,95605.0,0.3105024]
[1734884395733,8.56e-05,95606.0,95605.0,0.3105024]
[1734884396278,8.56e-05,95606.0,95605.0,0.3115024]
[1734884396478,8.56e-05,95606.0,95605.0,0.3055024]
[1734884397604,0.209172,95615.0,95605.0,0.3055024]
[1734884397803,0.209164,95619.0,95606.0,0.209191]
[1734884398005,0.00130738,95618.0,95605.0,0.1013084]
[1734884398272,0.01424225,95623.0,95615.0,0.209171]
[1734884398587,0.00130734,95622.0,95611.0,0.209179]
[1734884399336,0.003,95618.0,95611.0,0.209179]
[1734884399538,0.00130734,95622.0,95611.0,0.209179]
[1734884399539,0.00130737,95622.0,95611.0,0.209179]
[1734884399695,0.00130737,95622.0,95611.0,0.418359]
[1734884400290,0.21046637,95621.0,95608.0,0.209186]
[1734884400597,0.209161,95620.0,95608.0,0.209186]
[1734884400805,0.00130737,95619.0,95612.0,0.209177]
[1734884401076,0.209145,95627.0,95613.0,0.209176]
[1734884401378,0.00130736,95626.0,95613.0,0.209176]
[1734884401812,0.00130736,95626.0,95617.0,0.209166]
[1734884401965,0.209145,95627.0,95617.0,0.209166]
[1734884402379,0.0001625,95629.0,95621.0,0.209156]
[1734884402554,0.0001625,95629.0,95626.0,0.209148]
[1734884402755,0.0001625,95629.0,95620.0,0.20916]
[1734884403386,0.0001625,95629.0,95626.0,0.209146]
[1734884403664,0.0001625,95629.0,95628.0,0.209143]
[1734884403839,0.0001625,95629.0,95628.0,0.3104514]
[1734884405153,0.0001625,95629.0,95628.0,0.65549942]
[1734884405433,0.0011625,95629.0,95628.0,0.66449942]
[1734884405729,0.0001625,95629.0,95628.0,0.65549942]
[1734884406206,0.0081625,95629.0,95628.0,0.65649942]
[1734884406632,0.0081625,95629.0,95628.0,0.88771651]
[1734884406828,0.00797176,95629.0,95628.0,0.88771651]
[1734884407790,0.00797176,95629.0,95628.0,0.79641578]
[1734884407974,0.00797176,95629.0,95628.0,0.79541578]
[1734884408335,8.56e-05,95657.0,95628.0,1.09058624]
[1734884408546,8.56e-05,95657.0,95630.0,0.12621522]
[1734884408694,8.56e-05,95657.0,95652.0,0.20909]
[1734884409939,8.56e-05,95657.0,95652.0,0.41818]
[1734884411586,8.56e-05,95657.0,95652.0,0.41718]
[1734884411746,8.56e-05,95657.0,95654.0,0.418172]
[1734884411945,8.56e-05,95657.0,95654.0,0.5194804]
[1734884412227,8.56e-05,95657.0,95656.0,0.209082]
[1734884412431,8.56e-05,95657.0,95656.0,0.3103904]
[1734884412759,8.56e-05,95657.0,95656.0,0.81470386]
[1734884413170,8.56e-05,95669.0,95668.0,0.209056]
[1734884413371,0.00024832,95669.0,95668.0,0.3103644]
[1734884413799,0.00024832,95669.0,95668.0,0.91547786]
[1734884414894,0.00139181,95702.0,95695.0,0.208996]
[1734884415098,0.00193398,95702.0,95672.0,0.52731346]
[1734884415304,0.00193398,95702.0,95691.0,0.209004]
[1734884415862,0.00062777,95702.0,95695.0,0.208995]
[1734884416082,0.00062777,95702.0,95696.0,0.3103034]
[1734884416485,0.00062777,95702.0,95696.0,0.208995]
[1734884416685,0.00062777,95702.0,95687.0,0.209014]
[1734884416891,0.00062777,95702.0,95691.0,0.006]
[1734884417134,0.00062777,95702.0,95692.0,0.3103114]
[1734884417703,0.00062777,95702.0,95696.0,0.208993]
[1734884418086,0.00062777,95702.0,95696.0,0.417987]
[1734884418291,0.00062777,95702.0,95696.0,0.208993]
[1734884418696,0.00062777,95702.0,95696.0,0.214993]
[1734884418891,0.00062777,95702.0,95700.0,0.208984]
[1734884419357,0.00062777,95702.0,95696.0,0.214993]
[1734884419568,0.00062777,95702.0,95701.0,0.208984]
[1734884419683,0.00062777,95702.0,95696.0,0.214993]
[1734884419885,0.00062777,95702.0,95696.0,0.006]
[1734884420097,0.00062777,95702.0,95700.0,0.208984]
[1734884420299,0.00062777,95702.0,95700.0,0.214984]
[1734884420542,0.00062777,95702.0,95701.0,0.1013084]
[1734884421637,0.00062777,95702.0,95701.0,0.0953084]
[1734884421988,0.00062777,95702.0,95693.0,0.209]
[1734884422186,0.02537159,95712.0,95694.0,0.1013084]
[1734884422388,0.00016258,95712.0,95696.0,0.006]
[1734884422617,0.20912458,95712.0,95698.0,0.20899]
[1734884422821,0.00362254,95711.0,95699.0,0.1013084]
[1734884423031,0.00362254,95711.0,95701.0,0.006]
[1734884423475,0.00362254,95711.0,95699.0,0.1013084]
[1734884424088,0.208964,95710.0,95699.0,0.1013084]
[1734884424227,0.00130609,95709.0,95699.0,0.1013084]
[1734884424428,0.00362495,95709.0,95699.0,0.1013084]
[1734884424660,0.00231886,95709.0,95700.0,0.208986]
[1734884424854,0.00231886,95709.0,95700.0,0.1013084]
[1734884425053,0.00231886,95709.0,95696.0,0.208993]
[1734884425054,0.01443236,95712.0,95706.0,0.208972]
[1734884425254,0.01432469,95712.0,95706.0,0.208972]
[1734884425915,0.01432469,95712.0,95701.0,0.1043084]
[1734884426121,0.01432469,95712.0,95702.0,0.208982]
[1734884426326,0.21227163,95711.0,95693.0,0.71331346]
[1734884426530,0.00200361,95711.0,95706.0,0.002]
[1734884426805,0.00200361,95711.0,95704.0,0.208977]
[1734884427062,0.01432469,95712.0,95704.0,0.3102854]
[1734884427278,5.491e-05,95712.0,95711.0,0.83737546]
[1734884427474,8.56e-05,95718.0,95711.0,0.93868386]
[1734884427674,8.56e-05,95718.0,95717.0,0.208949]
[1734884427878,8.56e-05,95718.0,95717.0,0.3102574]
[1734884428275,8.56e-05,95718.0,95717.0,0.5832574]
[1734884428594,8.56e-05,95718.0,95717.0,0.4832574]
[1734884429472,8.56e-05,95718.0,95717.0,0.49757097]
[1734884429684,8.56e-05,95725.0,95718.0,0.023]
[1734884429891,8.56e-05,95725.0,95722.0,0.208938]
[1734884430092,8.56e-05,95725.0,95722.0,0.3102464]
[1734884430919,0.0040856,95723.0,95722.0,0.3102464]
[1734884432280,8.56e-05,95723.0,95722.0,0.3102464]
[1734884432491,0.0030856,95723.0,95722.0,0.3102464]
[1734884432889,8.56e-05,95723.0,95722.0,0.81455986]
[1734884433298,0.0060856,95723.0,95722.0,0.81455986]
[1734884433699,8.56e-05,95723.0,95722.0,0.81455986]
[1734884434107,0.00237126,95723.0,95722.0,0.81455986]
[1734884434765,0.00237126,95723.0,95722.0,0.1013084]
[1734884434965,0.00237126,95723.0,95716.0,0.208949]
[1734884434966,0.00237126,95723.0,95720.0,0.208941]
[1734884435179,0.00237126,95723.0,95722.0,0.1013084]
[1734884435426,0.00237126,95723.0,95703.0,0.50431346]
[1734884435630,0.208972,95707.0,95685.0,0.50431346]
[1734884435829,0.0831,95709.0,95692.0,0.02101906]
[1734884436031,0.0831,95709.0,95693.0,0.1013084]
[1734884436418,0.208968,95708.0,95694.0,0.208998]
[1734884436621,0.208968,95708.0,95696.0,0.208995]
[1734884436872,0.208968,95708.0,95695.0,0.1013084]
[1734884437432,0.21027714,95707.0,95695.0,0.1013084]
[1734884437636,0.21027714,95707.0,95695.0,0.3103044]
[1734884438233,0.0831855,95723.0,95696.0,0.00104491]
[1734884438463,8.55e-05,95723.0,95711.0,0.208961]
[1734884438811,8.55e-05,95723.0,95714.0,0.208954]
[1734884439026,8.55e-05,95723.0,95715.0,0.1013084]
[1734884439215,8.55e-05,95723.0,95716.0,0.208951]
[1734884439409,8.55e-05,95723.0,95721.0,0.208939]
[1734884440161,8.55e-05,95723.0,95722.0,0.1013084]
[1734884441535,8.55e-05,95723.0,95722.0,0.0953084]
[1734884441911,8.55e-05,95723.0,95722.0,0.096353]
[1734884442716,0.0010855,95723.0,95722.0,0.105353]
[1734884443158,8.55e-05,95723.0,95722.0,0.119353]
[1734884443561,0.0070855,95723.0,95722.0,0.120353]
[1734884443816,8.55e-05,95723.0,95722.0,0.119353]
[1734884444216,0.0070855,95723.0,95722.0,0.120353]
[1734884444615,0.00130552,95756.0,95723.0,0.208936]
[1734884444823,0.01436836,95761.0,95725.0,0.52731346]
[1734884445030,0.1,95783.0,95724.0,0.22535279]
[1734884445031,0.00024812,95746.0,95745.0,0.208888]
[1734884445202,0.00024812,95746.0,95745.0,0.81450986]
[1734884445636,0.00024812,95746.0,95745.0,0.83750986]
[1734884446245,0.00024812,95746.0,95745.0,0.81450986]
[1734884446684,0.00724812,95746.0,95745.0,0.60062186]
[1734884447417,0.00024812,95746.0,95745.0,0.59962186]
[1734884449164,0.00024812,95746.0,95745.0,0.60462186]
[1734884449572,0.00024812,95746.0,95745.0,0.59962186]
[1734884449971,0.00024812,95746.0,95745.0,0.60862186]
[1734884450785,0.00024812,95746.0,95745.0,0.2603084]
[1734884451568,0.00024812,95746.0,95745.0,0.2543084]
[1734884453031,0.00024812,95746.0,95745.0,0.2773084]
[1734884453441,0.00024812,95746.0,95745.0,0.95312186]
[1734884453762,0.00024812,95746.0,95745.0,0.96552267]
[1734884454101,0.00324812,95746.0,95745.0,0.96552267]
[1734884454306,0.0145426,95799.0,95764.0,0.88015946]
[1734884454622,0.00130489,95798.0,95764.0,0.98146786]
[1734884454785,0.208775,95797.0,95764.0,0.98146786]
[1734884454990,0.00130489,95796.0,95764.0,0.98146786]
[1734884455596,0.208793,95789.0,95764.0,0.80846786]
[1734884455828,0.00130508,95788.0,95764.0,0.80846786]
[1734884456424,0.00130508,95788.0,95764.0,0.3101544]
[1734884456626,0.208801,95785.0,95773.0,0.208825]
[1734884456822,0.208801,95785.0,95773.0,0.3101334]
[1734884457047,0.00130508,95784.0,95773.0,0.3101334]
[1734884458574,0.00130508,95784.0,95760.0,0.51574965]
[1734884458575,0.0807,95783.0,95760.0,0.70716746]
[1734884458749,0.00130513,95782.0,95761.0,0.3101604]
[1734884458950,0.00130513,95782.0,95761.0,0.1013084]
[1734884459171,0.208819,95777.0,95765.0,0.208843]
[1734884459362,0.208819,95777.0,95766.0,0.1013084]
[1734884460223,0.1286,95783.0,95766.0,0.1013084]
[1734884460416,0.00130514,95782.0,95766.0,0.1013084]
[1734884460631,0.00130514,95782.0,95751.0,0.208874]
[1734884460632,0.208809,95781.0,95751.0,0.208874]
[1734884460806,0.0013053,95780.0,95752.0,0.1013084]
[1734884461013,0.208829,95772.0,95766.0,0.007]
[1734884461258,0.208833,95770.0,95766.0,0.007]
[1734884461495,0.0013053,95769.0,95766.0,0.007]
[1734884461700,0.208838,95768.0,95766.0,0.007]
[1734884461936,8.56e-05,95781.0,95767.0,0.1013084]
[1734884462139,8.56e-05,95781.0,95778.0,0.208815]
[1734884462339,8.56e-05,95781.0,95780.0,0.208811]
[1734884462560,8.56e-05,95781.0,95780.0,0.202811]
[1734884463118,8.56e-05,95781.0,95774.0,0.208823]
[1734884463318,8.56e-05,95781.0,95776.0,0.20882]
[1734884463551,8.56e-05,95781.0,95779.0,0.208814]
[1734884463950,8.56e-05,95781.0,95778.0,0.002]
[1734884464159,8.56e-05,95781.0,95780.0,0.009]
[1734884464500,0.0473,95782.0,95762.0,0.09249483]
[1734884464800,0.208821,95776.0,95763.0,0.208848]
[1734884464998,0.208812,95780.0,95762.0,0.09249483]
[1734884464999,0.00130528,95775.0,95762.0,0.09249483]
[1734884465323,0.04726,95782.0,95767.0,0.208838]
[1734884465534,0.00130516,95781.0,95767.0,0.208838]
[1734884465738,0.21011416,95781.0,95779.0,0.009]
[1734884466145,0.21011416,95781.0,95767.0,0.208838]
[1734884466566,0.04726,95782.0,95771.0,0.20883]
[1734884466973,0.04726,95782.0,95779.0,0.007]
[1734884467374,0.10233387,95783.0,95768.0,0.208836]
[1734884467375,0.10363904,95783.0,95776.0,0.208818]
[1734884467616,0.10233387,95783.0,95776.0,0.208818]
[1734884467831,0.10233387,95783.0,95774.0,0.208824]
[1734884468040,0.10233387,95783.0,95778.0,0.208814]
[1734884469313,0.10233387,95783.0,95779.0,0.006]